[Event "Kezmarok Chess Open 2022"]
[Site "Kezmarok"]
[Date "2022.09.24"]
[Round "1.15"]
[White "Ropovik, Samuel"]
[Black "Belus, Benjamin"]
[Result "1-0"]
[ECO "B24"]
[WhiteElo "1497"]
[BlackElo "1932"]
[Annotator "TA"]
[PlyCount "105"]
[EventDate "2022.09.24"]
[EventType "swiss"]
[EventCountry "SVK"]
[SourceTitle "playchess.com"]
[Source "ChessBase"]
[SourceQuality "1"]
[TimeControl "40/5400+30:1800+30"]

{[%evp 9,105,34,51,37,35,45,34,36,43,45,30,20,47,13,12,0,0,-35,14,8,75,56,162,162,179,177,350,379,580,408,710,681,815,803,770,757,693,674,803,752,938,717,411,-241,-226,-200,-184,-232,-237,-232,-222,-231,-237,-227,-221,-408,-261,-247,-50,-44,0,0,72,71,162,162,145,151,123,123,370,370,355,348,343,219,335,326,1248,761,29979,29980,29980,29981,29981,29982,29982,29983,29983,29984,29984,29985,29985,29986,29986,29986,29986,29987]} 1. e4 {[%emt 0:00:05]} c5 {[%emt 0:05:18]} 2. Nc3 {[%emt 0:00:53]} Nc6 {[%emt 0:00:01]} 3. Nf3 {[%emt 0:00:27]} d6 {[%emt 0:00:03]} 4. Bb5 {[%emt 0:00:26]} Bg4 {[%emt 0:00:20]} 5. d4 {[%emt 0:12:36]} Bxf3 {[%emt 0:00:40]} 6. gxf3 {[%emt 0:01:42] B51: Sicilian: Moscow Variation (3 Bb5+) without 3...Bd7.} (6. Qxf3 cxd4 7. Nd5 (7. e5 Rc8 $17) 7... a6 $15) 6... cxd4 {[%emt 0:00:07]} 7. Qxd4 {[%emt 0:00:37]} Nf6 {[%emt 0:00:43] [#]} 8. Be3 $146 {[%emt 0:07:34] White is slightly better.} ({Predecessor:} 8. Bg5 Nd7 9. Qe3 h6 10. Bh4 a6 11. Bxc6 bxc6 12. O-O-O Qb6 13. Qxb6 Nxb6 14. f4 {0-1 (51) Barglowski,F (2321)-Belous,V (2524) chess24.com INT 2020}) 8... g6 {[%emt 0:00:55]} 9. O-O-O {[%emt 0:01:51]} Bg7 $1 {[%emt 0:00:28]} 10. Qd2 {[%emt 0:05:03]} O-O {[%emt 0:00:13]} 11. Bh6 {[%emt 0:03:11]} a6 {[%emt 0:00:03]} 12. Bxg7 {[%emt 0:03:00]} Kxg7 {[%emt 0:00:04]} 13. Be2 {[%emt 0:00:54]} b5 {[%emt 0:00:26]} (13... Qb6 $15) 14. Kb1 {[%emt 0:03:56]} b4 {[%emt 0:00:09]} (14... Qb6 $11) 15. Nd5 $16 {[%emt 0:01:40]} Nd7 {[%emt 0:09:17]} (15... e6 $14) 16. h4 $1 $18 {[%emt 0:06:02]} ({Much less strong is} 16. Nxb4 $6 Nxb4 17. Qxb4 f6 $16) 16... h5 {[%emt 0:00:01]} 17. f4 {[%emt 0:05:43][%cal Bf3f4,Bf4f5,Bf5g6][%mdl 32]} ({Don't do} 17. Nxb4 $6 Nxb4 18. Qxb4 Qc7 $16) 17... a5 $2 {[%emt 0:01:46]} (17... Qa5 18. f5 b3 19. cxb3 (19. Qxa5 bxc2+ 20. Kxc2 Nxa5 $16) 19... Qxd2 20. Rxd2 Nc5) 18. f5 {[%emt 0:01:53]} Nc5 {[%emt 0:01:10]} (18... e6 {was worth a try.} 19. fxe6 fxe6) 19. Bxh5 {[%emt 0:14:34]} a4 {[%emt 0:13:20]} (19... Nxe4 $2 20. Qe3 Qd7 21. Qxe4) (19... Rh8 $142 20. Be2 e6 21. fxe6 fxe6) 20. fxg6 {[%emt 0:02:49]} Nxe4 {[%emt 0:01:36]} 21. Qe3 {[%emt 0:00:51]} f5 {[%emt 0:00:37]} 22. Nf4 {[%emt 0:01:00] And now Ne6+ would win.} Qc8 {[%emt 0:03:54] Against Ne6+} 23. Bf3 {[%emt 0:06:28] Threatens to win with h5.} b3 {[%emt 0:01:41]} 24. Bxe4 {[%emt 0:02:01]} bxa2+ {[%emt 0:00:43]} 25. Kxa2 {[%emt 0:00:18] Threatening mate with Nh5+.} fxe4 {[%emt 0:03:19]} 26. h5 $4 {[%emt 0:01:10][%mdl 8192]} (26. Nh5+ $18 {and life is good for White.} Kxg6 27. Kb1 $1) 26... Nb4+ $19 {[%emt 0:01:08][%mdl 64] Discovered Attack, Double Attack} 27. Kb1 {[%emt 0:00:18] Intending h6+ and mate.} Qxc2+ {[%emt 0:00:31]} 28. Ka1 {[%emt 0:00:03] [#]} Qxd1+ $3 {[%emt 0:03:40][%mdl 512]} 29. Rxd1 {[%emt 0:00:15]} Nc2+ {[%emt 0:00:02]} 30. Ka2 {[%emt 0:01:00]} Nxe3 {[%emt 0:00:02]} 31. fxe3 {[%emt 0:00:28][%mdl 4096] Endgame KRR-KRN} Kh6 {[%emt 0:15:47]} 32. Ne6 $2 {[%emt 0:02:05]} (32. Rg1) 32... Rf3 {[%emt 0:11:35]} 33. Nd4 {[%emt 0:02:40]} Rh3 {[%emt 0:03:57]} ({Better is} 33... Rf2 $19 34. Ka3 Kxh5) 34. Nf5+ $15 {[%emt 0:01:18]} Kxh5 {[%emt 0:00:39]} (34... Kg5 $5 {[%cal Rg5f5]} 35. Nxe7 Kf6 36. Nd5+ Kg7 $17) 35. Rg1 {[%emt 0:05:03]} Rg8 {[%emt 0:05:08]} (35... e6 $11 36. Ne7 Rxe3) 36. g7 $16 {[%emt 0:00:48]} e6 {[%emt 0:04:29]} (36... e5 $16 {is a better defense.}) 37. Ne7 $18 {[%emt 0:00:20]} Rxg7 {[%emt 0:00:03]} 38. Rxg7 {[%emt 0:00:07] aiming for Rg6.} Rxe3 {[%emt 0:00:09] KRN-KR} 39. Rg6 {[%emt 0:01:23]} Re1 $2 {[%emt 0:04:47] Loses the game.} (39... e5 $16) 40. Rxe6 {[%emt 0:00:22]} Kg4 {[%emt 0:00:02]} 41. Rxd6 {[%emt 0:37:26]} Kf3 {[%emt 0:30:04]} 42. Re6 {[%emt 0:00:00]} e3 {[%emt 0:00:00]} (42... Rd1 {might work better.} 43. Nf5 Rd5) 43. Nd5 {[%emt 0:00:00]} e2 $2 {[%emt 0:00:00]} (43... Kf2 44. Rxe3 Rd1) 44. Nc3 {[%emt 0:00:00]} Kf2 {[%emt 0:00:00] [#]} 45. Rxe2+ $1 {[%emt 0:00:00][%mdl 512] White mates.} Rxe2 {[%emt 0:00:00]} 46. Nxe2 {[%emt 0:00:00]} Kxe2 {[%emt 0:00:00] [#] KP-KP} 47. Ka3 $1 {[%emt 0:00:00]} Kd3 {[%emt 0:00:00]} 48. Kxa4 {[%emt 0:00:00]} Kc4 {[%emt 0:00:00]} 49. b4 {[%emt 0:00:00][%cal Bb2b4,Bb4b5][%mdl 32]} Kd5 {[%emt 0:00:00]} 50. Kb5 {[%emt 0:00:00]} Kd6 {[%emt 0:00:00]} 51. Kb6 {[%emt 0:00:00]} Kd7 {[%emt 0:00:00]} 52. Kb7 {[%emt 0:00:00]} Kd6 {[%emt 0:00:00]} 53. b5 {[%emt 0:00:00] Weighted Error Value: White=0.34/Black=0.50} 1-0

[Event "Kezmarok Chess Open 2022"]
[Site "Kezmarok"]
[Date "2022.09.24"]
[Round "1.16"]
[White "Bochnickova, Simona"]
[Black "Hanina, Marcel"]
[Result "1-0"]
[ECO "C47"]
[WhiteElo "1903"]
[BlackElo "1411"]
[Annotator "TA"]
[PlyCount "67"]
[EventDate "2022.09.24"]
[EventType "swiss"]
[EventCountry "SVK"]
[SourceTitle "playchess.com"]
[Source "ChessBase"]
[SourceQuality "1"]
[TimeControl "40/5400+30:1800+30"]

{[%evp 15,67,0,7,-3,0,0,72,29,20,-27,-39,-80,34,27,31,-9,-8,-7,-14,-6,-12,-13,-8,-25,0,0,0,0,0,-42,-40,-29,0,-1,312,306,318,308,370,353,361,361,356,340,693,664,818,786,29971,29972,29975,29970,12844,10001]} 1. e4 e5 2. Nf3 Nc6 3. Nc3 Nf6 4. d4 exd4 5. Nxd4 Bc5 6. Nxc6 bxc6 7. Bc4 O-O 8. O-O d6 9. h3 {C47: Scotch Four Knights and Four Knights with 4 g3.} h6 10. Qf3 {[#]} Ne8 $146 (10... Nd7 $11 {keeps the balance.}) ({Predecessor:} 10... Bd4 11. Ne2 Be5 12. Bd3 Rb8 13. Ng3 Re8 14. Rb1 Be6 15. b3 c5 16. Bf4 Nd7 17. Bd2 {½-½ (52) Ni,S (2320)-Lei,T (2436) Wuxi 2014}) 11. Be3 {White is more active. White is better.} Bxe3 12. fxe3 (12. Qxe3 $142 Nf6 13. Rad1) 12... Qe7 $11 13. Ne2 Be6 ({Black should try} 13... Nf6 $17) 14. Bxe6 $14 fxe6 15. Qxf8+ (15. Nf4 $5 {[%cal Rf4g6]}) 15... Qxf8 16. Rxf8+ Kxf8 {[%mdl 4096] Endgame KRN-KRN} 17. Nd4 e5 18. Nxc6 Nf6 19. Rd1 ({Don't play} 19. Rf1 a5 20. b4 axb4 $15) 19... Nxe4 20. Rd3 a6 21. Ra3 Ke8 22. b4 {[%cal Bb2b4,Bb4b5][%mdl 32]} (22. Ra4 $5 {[%cal Ra4e4]} Nc5 23. Ra5 $11) 22... Kd7 23. b5 Nc5 24. Ra5 Nb7 $2 {[%mdl 8192] [#] This move loses the game for Black.} (24... Rf8 $11 {and Black stays safe.}) 25. Rxa6 $18 Rf8 26. Ra7 Nc5 27. Nb4 Rb8 28. c4 Rb7 29. Ra8 Ke6 $2 (29... d5 30. Nxd5 c6) 30. a4 {[%cal Ba2a4,Ba4a5,Ba5a6][%mdl 32]} Nd7 31. a5 {[#] Against Nb6. aiming for a6.} Rb8 32. Rxb8 Nxb8 33. a6 Nd7 34. Nd5 {Weighted Error Value: White=0.13 (very precise) /Black=0.85} 1-0

[Event "Kezmarok Chess Open 2022"]
[Site "Kezmarok"]
[Date "2022.09.24"]
[Round "1.17"]
[White "Velychko, Sofiya"]
[Black "Striskova, Lucia"]
[Result "1/2-1/2"]
[ECO "B90"]
[WhiteElo "1371"]
[BlackElo "1866"]
[Annotator "NA RC COMBH"]
[PlyCount "145"]
[EventDate "2022.09.24"]
[EventType "swiss"]
[EventCountry "SVK"]
[SourceTitle "playchess.com"]
[Source "ChessBase"]
[SourceQuality "1"]
[TimeControl "40/5400+30:1800+30"]

1. e4 {[%emt 0:00:03]} c5 {[%emt 0:00:10]} 2. Nf3 {[%emt 0:00:14]} d6 {[%emt 0:00:11]} 3. d4 {[%emt 0:00:31]} cxd4 {[%emt 0:00:04]} 4. Nxd4 {[%emt 0:00:17]} Nf6 {[%emt 0:00:05]} 5. Nc3 {[%emt 0:00:48]} a6 {[%emt 0:00:15]} 6. a4 {[%emt 0:02:00]} e5 {[%emt 0:00:54]} 7. Nf3 {[%emt 0:00:50]} h6 {[%emt 0:00:51]} 8. Bc4 {[%emt 0:01:52]} Qc7 {[%emt 0:01:03]} 9. Bb3 {[%emt 0:01:11]} Be7 {[%emt 0:01:18]} 10. O-O {[%emt 0:01:30]} O-O {[%emt 0:00:28]} 11. h3 {[%emt 0:02:30]} Nbd7 {[%emt 0:03:19]} 12. Be3 {[%emt 0:01:57]} Nc5 {[%emt 0:02:24]} 13. Nd5 {[%emt 0:02:47]} Nxd5 {[%emt 0:02:27]} 14. Bxd5 {[%emt 0:00:22]} Be6 {[%emt 0:00:42]} 15. c4 {[%emt 0:04:41]} Bxd5 {[%emt 0:03:29]} 16. exd5 {[%emt 0:01:41]} a5 {[%emt 0:01:25]} 17. Nd2 {[%emt 0:01:59]} f5 {[%emt 0:02:35]} 18. Nb3 {[%emt 0:05:09]} Na6 {[%emt 0:01:45]} 19. Rc1 {[%emt 0:01:30]} b6 {[%emt 0:00:30]} 20. f4 {[%emt 0:00:57]} Nc5 {[%emt 0:04:11]} 21. Nxc5 {[%emt 0:05:20]} bxc5 {[%emt 0:00:52]} 22. Qh5 {[%emt 0:02:57]} e4 {[%emt 0:02:46]} 23. Bd2 {[%emt 0:01:58]} Qd7 {[%emt 0:01:18]} 24. Bc3 {[%emt 0:00:44]} Bf6 {[%emt 0:01:16]} 25. b3 {[%emt 0:03:31]} Qb7 {[%emt 0:03:21]} 26. Bxf6 {[%emt 0:01:49]} Rxf6 {[%emt 0:00:09]} 27. Rb1 {[%emt 0:00:40]} Rb8 {[%emt 0:00:43]} 28. Qe2 {[%emt 0:01:02]} Qe7 {[%emt 0:01:17]} 29. Rfe1 {[%emt 0:01:47]} Rb4 {[%emt 0:00:17]} 30. Qe3 {[%emt 0:01:03]} Rg6 {[%emt 0:01:38]} 31. Kh2 {[%emt 0:01:50]} Qf6 {[%emt 0:01:27]} 32. Red1 {[%emt 0:02:27]} h5 {[%emt 0:01:39]} 33. g3 {[%emt 0:02:15]} h4 {[%emt 0:02:34]} 34. gxh4 {[%emt 0:02:30]} Qxh4 {[%emt 0:01:34]} 35. Rg1 {[%emt 0:00:54]} Rxg1 {[%emt 0:02:58]} 36. Rxg1 {[%emt 0:00:16]} Qf6 {[%emt 0:00:08]} 37. Rg2 {[%emt 0:01:44]} Qd4 {[%emt 0:03:25]} 38. Qg3 {[%emt 0:02:56]} Qf6 {[%emt 0:02:42]} 39. Qe3 {[%emt 0:01:18]} Rb7 {[%emt 0:00:07]} 40. Qg3 {[%emt 0:01:01]} Kf7 {[%emt 0:05:28]} 41. Qe3 {[%emt 0:31:40]} Rb8 {[%emt 0:33:18]} 42. Qg3 {[%emt 0:00:40]} Rb4 {[%emt 0:02:21]} 43. Qe3 {[%emt 0:00:22]} Rb7 {[%emt 0:00:52]} 44. Qg3 {[%emt 0:00:34]} Rb8 {[%emt 0:00:02]} 45. Qe3 {[%emt 0:01:11]} Kf8 {[%emt 0:02:50]} 46. Qg3 {[%emt 0:00:38]} Rb7 {[%emt 0:00:02]} 47. Qe3 {[%emt 0:01:04]} Qd4 {[%emt 0:00:48]} 48. Qg3 {[%emt 0:00:28]} Qf6 {[%emt 0:07:24]} 49. Qe3 {[%emt 0:00:48]} Ke8 {[%emt 0:01:30]} 50. Qg3 {[%emt 0:01:53]} Kd8 {[%emt 0:00:16]} 51. Qe1 {[%emt 0:02:18]} Ra7 {[%emt 0:00:27]} 52. Qe3 {[%emt 0:01:12]} Kc8 {[%emt 0:00:15]} 53. Qg3 {[%emt 0:02:12]} Kb8 {[%emt 0:00:04]} 54. Qe3 {[%emt 0:00:38]} Kb7 {[%emt 0:00:23]} 55. Qg3 {[%emt 0:00:30]} Ka6 {[%emt 0:00:02]} 56. Qe3 {[%emt 0:01:25]} Re7 {[%emt 0:00:30]} 57. Qg3 {[%emt 0:02:25]} Rb7 {[%emt 0:04:52]} 58. Qe3 {[%emt 0:00:37]} Qd4 {[%emt 0:02:25]} 59. Qg3 {[%emt 0:02:57]} e3 $17 {[%emt 0:02:06]} 60. Re2 {[%emt 0:02:16]} Rxb3 {[%emt 0:00:39]} 61. Qf3 {[%emt 0:00:48]} Qxc4 {[%emt 0:03:51]} 62. Rxe3 {[%emt 0:00:28]} Rxe3 {[%emt 0:00:09]} 63. Qxe3 {[%emt 0:00:08]} Qxd5 {[%emt 0:00:28]} 64. Qe8 {[%emt 0:00:42]} Qa2+ {[%emt 0:03:24]} 65. Kg3 {[%emt 0:00:14]} Qb3+ {[%emt 0:00:26]} 66. Kh4 {[%emt 0:00:31]} c4 $2 {[%emt 0:02:24]} ({Black should try} 66... Qb7 $19 67. Qe2+ Ka7) 67. Qc6+ {[%emt 0:00:36]} Ka7 {[%emt 0:00:30]} 68. Qc7+ {[%emt 0:00:10]} Ka6 {[%emt 0:01:03]} 69. Qc6+ {[%emt 0:00:07]} Qb6 {[%emt 0:00:18]} 70. Qa8+ {[%emt 0:00:13]} Qa7 {[%emt 0:00:11]} 71. Qc6+ {[%emt 0:00:05]} Qb6 {[%emt 0:00:05]} 72. Qa8+ {[%emt 0:00:04]} Qa7 {[%emt 0:00:02]} 73. Qc6+ {[%emt 0:00:06]} 1/2-1/2

[Event "Kezmarok Chess Open 2022"]
[Site "Kezmarok"]
[Date "2022.09.24"]
[Round "1.18"]
[White "Mirowska, Oliwia"]
[Black "Horbalova, Ivana"]
[Result "1-0"]
[ECO "A03"]
[WhiteElo "1856"]
[BlackElo "1286"]
[Annotator "NA RC COMBH"]
[PlyCount "57"]
[EventDate "2022.09.24"]
[EventType "swiss"]
[EventCountry "SVK"]
[SourceTitle "playchess.com"]
[Source "ChessBase"]
[SourceQuality "1"]
[TimeControl "40/5400+30:1800+30"]

1. f4 d5 2. Nf3 c5 3. g3 Nc6 4. Bg2 Nf6 5. O-O e6 6. d3 d4 7. Nbd2 a6 8. a4 Bd7 9. Ne4 Nd5 10. e3 f5 11. Neg5 Nxe3 12. Bxe3 dxe3 13. Re1 h6 14. Nh3 Qb6 15. Rxe3 O-O-O 16. Nf2 Be7 17. d4 Nxd4 18. Nxd4 cxd4 19. Rb3 Bb4 20. a5 Qc5 21. Nd3 Qa7 22. Rxb4 Bb5 23. Qe2 Rd6 24. Qe5 Rhd8 25. Re1 Bxd3 26. cxd3 b5 27. axb6 Rxb6 28. Rc4+ Kd7 29. Qxg7+ 1-0

[Event "Kezmarok Chess Open 2022"]
[Site "Kezmarok"]
[Date "2022.09.25"]
[Round "2.2"]
[White "Elias, David"]
[Black "Manik, Mikulas"]
[Result "0-1"]
[ECO "E92"]
[WhiteElo "1988"]
[BlackElo "2362"]
[Annotator "TA"]
[PlyCount "120"]
[EventDate "2022.09.24"]
[EventType "swiss"]
[EventCountry "SVK"]
[SourceTitle "playchess.com"]
[Source "ChessBase"]
[SourceQuality "1"]
[TimeControl "40/5400+30:1800+30"]

{[%evp 26,120,59,58,66,45,72,72,71,70,76,48,50,20,27,21,49,0,0,0,0,0,10,0,0,-19,-14,-50,-39,-134,-72,-138,-116,-126,-116,-124,-106,-112,-79,-120,-122,-122,-40,-52,-62,-55,-58,-69,-74,-125,-111,-160,-164,-169,-158,-284,-279,-354,-383,-359,-307,-303,-269,-258,-253,-319,-318,-326,-330,-495,-493,-467,-419,-500,-363,-612,-403,-1184,-1106,-973,-906,-1352,-1302,-1775,-1679,-1662,-1576,-4602,-3018,-29952,-6079,-29984,-29985,-29984,-29985,-29982,-4706]} 1. Nf3 {[%emt 0:00:04]} Nf6 {[%emt 0:03:34]} 2. c4 {[%emt 0:00:14]} g6 {[%emt 0:00:36]} 3. Nc3 {[%emt 0:00:16]} Bg7 {[%emt 0:00:15]} 4. e4 {[%emt 0:00:31]} d6 {[%emt 0:00:04]} 5. d4 {[%emt 0:00:15]} O-O {[%emt 0:00:08]} 6. Be2 {[%emt 0:00:25]} e5 {[%emt 0:00:02]} 7. d5 {[%emt 0:00:33]} a5 {[%emt 0:00:14]} 8. Bg5 {[%emt 0:01:22]} h6 {[%emt 0:00:04]} 9. Be3 {[%emt 0:00:16]} Ng4 {[%emt 0:02:35]} 10. Bd2 {[%emt 0:00:38]} Na6 {[%emt 0:00:20]} 11. h3 {[%emt 0:00:50]} Nf6 {[%emt 0:04:52]} 12. Be3 {[%emt 0:00:17]} Nc5 {[%emt 0:00:24]} 13. Nd2 {[%emt 0:00:49]} c6 {[%emt 0:00:31]} 14. O-O {[%emt 0:06:54]} Nfd7 {[%emt 0:05:58] E92: King's Indian: Classical: 6 Be2 e5: 7 dxe5, 7 Be3 and Petrosian System without 7...Nbd7.} 15. Nb3 {[%emt 0:07:39] dxc6 is the strong threat.} Nxb3 {[%emt 0:03:06]} 16. axb3 {[%emt 0:01:02]} c5 {[%emt 0:00:13] [#] White is better.} 17. Qd2 $146 {[%emt 0:05:56]} ({Predecessor:} 17. Nb5 Qe7 18. Qd2 b6 19. Bxh6 Nb8 20. Bxg7 Kxg7 21. f4 exf4 22. Qxf4 Rd8 23. Rf2 Qe5 24. Qxf7+ {1-0 (22) Belous,V (2518)-Ciorgovean,I (2305) Chess.com INT 2021}) 17... Kh7 {[%emt 0:00:39]} 18. Nb5 {[%emt 0:01:16]} Nf6 {[%emt 0:00:58]} 19. Qc2 {[%emt 0:02:16]} b6 {[%emt 0:03:15]} 20. f4 {[%emt 0:22:35]} exf4 $1 {[%emt 0:00:22]} 21. Rxf4 {[%emt 0:00:48]} (21. Bxf4 $14 {deserves consideration.} Ne8 22. Bd3) 21... Ba6 $11 {[%emt 0:00:27]} 22. Nc3 {[%emt 0:02:53]} Nd7 {[%emt 0:01:08]} 23. Raf1 {[%emt 0:01:51]} Ne5 {[%emt 0:00:12]} 24. Na2 {[%emt 0:08:12]} Qe7 {[%emt 0:01:58]} 25. Nc1 {[%emt 0:02:39]} Rae8 {[%emt 0:03:17]} 26. Nd3 {[%emt 0:06:47]} Nd7 {[%emt 0:05:02][%cal Of7f5]} 27. Ne1 {[%emt 0:10:10]} (27. Re1 $15) 27... Bc8 {[%emt 0:01:30]} (27... f5 $142 $1 28. Nd3 h5) 28. Bd3 {[%emt 0:02:24]} ({White should play} 28. Bd2) 28... Ne5 {[%emt 0:04:45]} 29. Bd2 {[%emt 0:06:32]} g5 {[%emt 0:03:40] Black is more active.} 30. R4f2 {[%emt 0:00:33]} Nxd3 {[%emt 0:00:40]} 31. Qxd3 {[%emt 0:00:17]} Bd4 {[%emt 0:07:26]} ({Much less strong is} 31... Bxb2 32. e5+ Kg7 33. exd6 Qxd6 34. Bxa5 $1 $14) 32. Be3 {[%emt 0:01:45]} Bxe3 {[%emt 0:01:34]} ({Don't play} 32... Qxe4 $6 33. Qxe4+ Rxe4 34. Bxd4 cxd4 35. Rf6 $11) 33. Qxe3 {[%emt 0:01:00]} Qxe4 {[%emt 0:04:03]} (33... f5 $1 $17 {Strongly threatening ...f4.} 34. Qd2 Qxe4) 34. Qxe4+ {[%emt 0:00:19]} Rxe4 {[%emt 0:00:10]} 35. Rf6 {[%emt 0:02:05]} Re3 $1 {[%emt 0:01:00]} 36. Rxd6 {[%emt 0:01:55]} Rxb3 {[%emt 0:00:06][%cal Be3b3,Bb3b4,Bb4d4][%mdl 32] White is on the road to losing.} 37. Rf2 {[%emt 0:00:35] [#]} ({Better is} 37. Rff6 b5 38. Rc6 (38. Rxh6+ $2 Kg7 $17)) 37... Kg7 $1 $17 {[%emt 0:01:49]} 38. Rc6 {[%emt 0:01:37]} (38. Nf3 $142) 38... Ba6 {[%emt 0:00:33]} 39. Rc2 {[%emt 0:00:36]} Rb4 {[%emt 0:00:35]} 40. d6 {[%emt 0:01:19]} (40. Nd3 $17 {was forced.} Rxc4 41. Rf2) 40... Bxc4 $19 {[%emt 0:01:17]} 41. Nf3 {[%emt 0:31:31]} Bd5 {[%emt 0:33:19]} 42. Rc7 {[%emt 0:00:00]} Bxf3 {[%emt 0:00:00]} 43. gxf3 {[%mdl 4096] Endgame KRR-KRR} Rd4 {[%emt 0:00:00] Prevents Rd2.} 44. Rc6 {[%emt 0:00:00]} Rb8 {[%emt 0:00:00]} 45. Kf2 {[%emt 0:00:00]} a4 {[%emt 0:00:00]} 46. Kg3 {[%emt 0:00:00]} h5 {[%emt 0:00:00][%cal Bh6h5,Bh5h4][%mdl 32]} 47. Re2 {[%emt 0:00:00]} (47. f4 $142 Rd3+ 48. Kg2) 47... Rd8 {[%emt 0:00:00]} 48. Rxb6 {[%emt 0:00:00]} R8xd6 {[%emt 0:00:00]} 49. Rxd6 {[%emt 0:00:00]} Rxd6 {[%emt 0:00:00] KR-KR} 50. Re5 $2 (50. h4 f6 51. hxg5) 50... Kg6 {[%emt 0:00:00] aiming for ...h4+.} 51. Rxc5 {[%emt 0:00:00]} (51. h4 $142 gxh4+ 52. Kxh4 Rd4+ 53. Kg3) 51... h4+ 52. Kf2 {[%emt 0:00:00]} Rd2+ {[%emt 0:00:00]} 53. Ke3 {[%emt 0:00:00]} Rxb2 {[%emt 0:00:00]} 54. Ra5 {[%emt 0:00:00]} Rh2 {[%emt 0:00:00]} 55. Rxa4 {[%emt 0:00:00]} Rxh3 {[%emt 0:00:00]} 56. Kf2 {[%emt 0:00:00]} Rh2+ {[%emt 0:00:00]} 57. Kg1 {[%emt 0:00:00]} Rd2 {[%emt 0:00:00]} (57... Rc2 $142 58. Rd4 h3 59. Rd7 Rg2+ 60. Kh1 Rf2 61. Rd3 Kf5 62. Kg1 h2+ 63. Kh1 Kf4 64. Ra3 Rxf3 65. Ra2 Kg3 66. Rg2+ Kh4 67. Rc2 g4 68. Rxh2+ Rh3 69. Kg2 Rxh2+ 70. Kxh2 g3+ 71. Kh1 Kg4 72. Kg2 f6 73. Kf1 Kf3 74. Ke1 g2 75. Kd1 g1=Q+ 76. Kc2 Qc5+ 77. Kb1 Ke2 78. Ka1 Kd3 79. Kb1 Qb6+ 80. Ka2 Kc3 81. Ka3 Qb3#) 58. f4 {[%emt 0:00:00]} g4 {[%emt 0:00:00] Black mates.} 59. Ra5 {[%emt 0:00:00]} f6 {[%emt 0:00:00]} 60. Rb5 {[%emt 0:00:00]} Rd4 {[%emt 0:00:00] Weighted Error Value: White=0.94/Black=0.29 (precise)} (60... h3 $142 61. Rb8 Kf5 62. Rb5+ Kxf4 63. Rb4+ Kg5 64. Rb5+ f5 65. Rb3 Rg2+ 66. Kh1 Ra2 67. Kg1 f4 68. Rb8 g3 69. Rg8+ Kf5 70. Kf1 h2 71. Rf8+ Kg4 72. Rg8+ Kf3 73. Rxg3+ fxg3 74. Ke1 h1=Q#) 0-1

[Event "Kezmarok Chess Open 2022"]
[Site "Kezmarok"]
[Date "2022.09.25"]
[Round "2.3"]
[White "Velychko, Semen"]
[Black "Hagarova, Zuzana"]
[Result "0-1"]
[ECO "B35"]
[WhiteElo "1604"]
[BlackElo "2287"]
[Annotator "TA"]
[PlyCount "72"]
[EventDate "2022.09.24"]
[EventType "swiss"]
[EventCountry "SVK"]
[SourceTitle "playchess.com"]
[Source "ChessBase"]
[SourceQuality "1"]
[TimeControl "40/5400+30:1800+30"]

{[%evp 23,72,-41,-46,-27,-31,-41,-27,-74,-65,-64,0,0,0,0,0,0,0,0,0,0,0,-16,-25,-76,-79,-105,-98,-110,-104,-258,-257,-270,-260,-260,-256,-259,-252,-252,-210,-238,-198,-235,-227,-231,-239,-419,-416,-500,-427,-488,-232]} 1. e4 {[%emt 0:00:03]} c5 {[%emt 0:00:17]} 2. Nf3 {[%emt 0:00:14]} Nc6 {[%emt 0:00:14]} 3. d4 {[%emt 0:00:25]} cxd4 {[%emt 0:00:31]} 4. Nxd4 {[%emt 0:00:31]} g6 {[%emt 0:04:04]} 5. Nc3 {[%emt 0:02:04]} Bg7 {[%emt 0:00:57]} 6. Be3 {[%emt 0:02:01]} Nf6 {[%emt 0:00:25]} 7. Bc4 {[%emt 0:01:21]} O-O {[%emt 0:03:53]} 8. Bb3 {[%emt 0:01:11]} d6 {[%emt 0:04:57]} 9. f3 {[%emt 0:05:34]} Bd7 {[%emt 0:02:29]} 10. Qd2 {[%emt 0:01:59]} Qa5 11. O-O-O {[%emt 0:05:29]} Rfc8 {[%emt 0:05:43]} 12. Nd5 {[%emt 0:10:53]} Qxd2+ {[%emt 0:11:57]} 13. Rxd2 {[%emt 0:00:22] B79: Sicilian Dragon: Yugoslav Attack, 9 Bc4 Bd7 10 0-0-0 Qa5.} Nxd5 {[%emt 0:00:26]} 14. Bxd5 {[%emt 0:01:13]} Rab8 {[%emt 0:01:08] [#]} 15. Nxc6 $146 {[%emt 0:02:04]} (15. Kb1 $11) ({Predecessor:} 15. Kb1 Ne5 16. Ne2 a5 17. Ba7 Ra8 18. Bd4 Bh6 19. Rdd1 Nc6 20. Bxc6 bxc6 21. h4 {0-1 (39) Koke,C (2053)-Stets,D (2427) Senden 2009}) 15... bxc6 $17 {[%emt 0:00:28]} 16. Bb3 {[%emt 0:00:20]} c5 {[%emt 0:02:26]} (16... Be6 $1 $15) 17. c3 $11 {[%emt 0:01:51]} a5 {[%emt 0:01:18]} 18. Bc4 {[%emt 0:02:44]} Rc7 {[%emt 0:04:28][%cal Bc8c7,Bc7b7,Bb7b6,Bb6a6,Ba6a3][%mdl 32]} 19. Kc2 {[%emt 0:02:23]} Rcb7 {[%emt 0:02:09]} 20. Rb1 {[%emt 0:10:21]} h5 {[%emt 0:11:08]} 21. Bd5 {[%emt 0:12:46]} Rb6 {[%emt 0:02:26]} 22. Bg5 {[%emt 0:00:46]} Kf8 {[%emt 0:00:46]} 23. b3 {[%emt 0:02:02]} (23. Bc4 $11) 23... Bb5 $17 {[%emt 0:01:10] Strongly threatening ...e6.} 24. Rbd1 {[%emt 0:04:56]} a4 {[%emt 0:04:56]} 25. Be3 {[%emt 0:02:31]} Ra6 {[%emt 0:03:52]} 26. Bc4 $2 {[%emt 0:04:25] White does not recover from this.} (26. Bf4 $17 {was necessary.}) 26... axb3+ $19 {[%emt 0:01:32]} 27. axb3 {[%emt 0:00:23]} Bxc4 {[%emt 0:01:15]} 28. bxc4 {[%emt 0:00:26]} Ra3 {[%emt 0:00:42][%csl Gg7][%cal Ra3c3] [#]} 29. Rd3 {[%emt 0:00:42]} Ra2+ {[%emt 0:13:37]} 30. Kc1 {[%emt 0:00:07]} Kg8 {[%emt 0:06:59]} ({Worse is} 30... Rxg2 31. R3d2 Rxd2 32. Bxd2 $17) 31. R1d2 {[%emt 0:02:32]} Ra1+ {[%emt 0:00:23]} 32. Kc2 {[%emt 0:00:07]} Rab1 {[%emt 0:00:30][%csl Gb1][%cal Rb8b2] [#]} 33. Rd5 {[%emt 0:01:33]} R8b3 {[%emt 0:02:45]} 34. e5 $2 {[%emt 0:06:38]} (34. g3 {might work better.}) 34... Bxe5 {[%emt 0:01:36]} 35. Rxe5 {[%emt 0:00:36]} dxe5 {[%emt 0:00:09]} 36. Bxc5 {[%emt 0:00:04]} R3b2+ {[%emt 0:03:36] Weighted Error Value: White=0.45/Black=0.05 (flawless)} (36... R1b2+ $142 37. Kd3 Rxd2+ 38. Kxd2 Rb2+ 39. Ke1 Rxg2 40. Bxe7 Rxh2) 0-1